bitfinex/quotes_ETHUSD_20220309
["timestamp","ask_amount","ask_price","bid_price","bid_amount"]
[1646824212318,0.02147195,2755.6,2755.4,0.03120124]
[1646824212516,3.52147195,2755.6,2755.4,0.03120124]
[1646824212717,3.52147195,2755.6,2755.4,0.00347076]
[1646824212718,3.88397195,2755.6,2755.4,0.00347076]
[1646824212921,3.5,2755.5,2755.4,0.00347076]
[1646824213166,2.5,2755.4,2754.9,0.029168]
[1646824213371,2.5,2755.4,2754.8,0.00847392]
[1646824213372,0.90795,2755.4,2754.8,0.00847392]
[1646824213565,0.90795,2755.4,2754.7,0.27930096]
[1646824213566,1.06407194,2755.2,2754.7,0.27930096]
[1646824213766,1.42657194,2755.2,2754.7,0.27930096]
[1646824214866,1.42657194,2755.2,2754.7,0.03389568]
[1646824214867,1.20798,2755.1,2754.7,0.03389568]
[1646824215269,1.20798,2755.1,2754.5,0.03790704]
[1646824215469,5.07048,2755.1,2754.5,0.03790704]
[1646824215669,5.97856,2755.1,2754.5,0.03790704]
[1646824215874,4.8625,2755.0,2754.5,0.03193408]
[1646824216070,6.67881,2755.0,2754.5,0.03193408]
[1646824216270,2.8625,2754.9,2754.4,0.06322508]
[1646824216670,0.99147008,2754.7,2754.4,0.06322508]
[1646824216912,1.89964008,2754.7,2754.4,0.06322508]
[1646824217111,2.26214008,2754.7,2754.4,0.06322508]
[1646824217311,5.76214008,2754.7,2754.4,0.06322508]
[1646824217511,2.26214008,2754.7,2754.4,0.06322508]
[1646824218316,2.26214008,2754.7,2754.4,0.06749315]
[1646824218919,1.27067,2754.7,2754.4,0.06749315]
[1646824219318,1.27067,2754.7,2754.4,0.06322508]
[1646824219518,1.27067,2754.7,2754.4,0.06732881]
[1646824219923,0.90817,2754.7,2754.4,0.06732881]
[1646824220123,0.90817,2754.7,2754.3,10.13732881]
[1646824220327,0.2028851,2755.0,2754.4,1.66321099]
[1646824220328,0.0214851,2755.0,2754.4,1.66321099]
[1646824220579,0.0214851,2755.0,2754.5,10.95446124]
[1646824220771,0.0214851,2755.0,2754.6,1.26213243]
[1646824220971,0.0214851,2755.0,2754.6,0.445]
[1646824221872,0.0214851,2755.0,2754.4,0.07162672]
[1646824222175,3.92491985,2754.9,2754.4,0.07162672]
[1646824222371,3.31682985,2754.9,2754.4,0.07162672]
[1646824222572,1.20801,2754.9,2754.4,0.07162672]
[1646824222773,0.0214851,2755.0,2754.4,0.07162672]
[1646824223173,0.0214851,2755.0,2754.3,0.90793215]
[1646824223373,0.0214851,2755.0,2754.4,0.81743274]
[1646824223575,2.2000251,2755.0,2754.3,0.90793215]
[1646824223777,1.37754932,2754.9,2754.3,0.90793215]
[1646824224174,1.37754932,2754.9,2754.3,0.90444233]
[1646824224175,0.90801,2754.9,2754.3,0.90444233]
[1646824224412,0.0214851,2755.0,2754.4,0.81772709]
[1646824226213,0.0214851,2755.0,2754.3,0.00426834]
[1646824226214,0.9294051,2755.0,2754.3,0.00426834]
[1646824226419,1.2919051,2755.0,2754.3,0.00426834]
[1646824226615,0.9294051,2755.0,2754.0,0.1814]
[1646824226814,0.9294051,2755.0,2754.1,0.81805676]
[1646824227015,1.2294051,2755.0,2754.1,0.81805676]
[1646824227414,1.2294051,2755.0,2754.4,1.08426441]
[1646824227415,0.9294051,2755.0,2754.4,1.08426441]
[1646824227616,1.2294051,2755.0,2754.4,1.08426441]
[1646824228070,0.9294051,2755.0,2754.4,1.08426441]
[1646824228262,1.2294051,2755.0,2754.4,1.08426441]
[1646824228462,0.9294051,2755.0,2754.4,1.08426441]
[1646824228663,1.2294051,2755.0,2754.3,0.00412098]
[1646824228864,1.2294051,2755.0,2753.9,0.18391706]
[1646824229070,1.5294051,2755.0,2753.9,0.1814]
[1646824229268,0.1814,2755.2,2754.2,0.3625]
[1646824229465,2.2532,2755.6,2754.1,17.08286533]
[1646824229466,2.2532,2755.6,2754.5,11.3825]
[1646824229671,3.5,2755.5,2754.1,0.1814]
[1646824229866,3.5,2755.5,2754.2,0.00251706]
[1646824229867,0.01230715,2754.9,2754.2,0.00251706]
[1646824230073,0.01230715,2754.9,2754.0,0.00251706]
[1646824230074,0.17970716,2754.2,2754.0,0.00251706]
[1646824230266,0.17970716,2754.2,2753.8,0.0327805]
[1646824230667,0.36110716,2754.2,2753.8,0.0327805]
[1646824230966,1.27095,2754.1,2753.8,0.0327805]
[1646824231572,4.77095,2754.1,2753.8,0.0327805]
[1646824231814,1.27095,2754.1,2753.8,0.03703353]
[1646824232013,0.3625,2753.9,2753.8,0.0290916]
[1646824232414,0.3625,2753.9,2753.8,9.16e-05]
[1646824232415,1.30253451,2753.9,2753.8,9.16e-05]
[1646824232715,0.02835825,2753.6,2753.4,0.03010856]
[1646824232915,0.1714,2753.5,2753.4,0.08829176]
[1646824233617,1.44249,2753.5,2753.4,0.08829176]
[1646824234224,1.44249,2753.5,2752.8,0.03051806]
[1646824234225,0.3625,2753.3,2752.8,0.03051806]
[1646824234421,0.3625,2753.3,2752.8,0.03903552]
[1646824234422,3.5,2753.2,2752.8,0.03903552]
[1646824234618,0.3625,2753.1,2752.9,0.04206333]
[1646824234922,0.3625,2753.1,2752.6,0.09041788]
[1646824234923,6.0,2752.9,2752.6,0.09041788]
[1646824235121,5.3625,2752.7,2752.6,0.03218728]
[1646824235321,0.3625,2752.5,2752.2,0.05043326]
[1646824235572,3.5,2752.4,2752.3,0.0668778]
[1646824235766,0.3625,2752.4,2752.3,0.0668778]
[1646824236364,6.3625,2752.3,2752.2,0.02256764]
[1646824236567,9.8625,2752.3,2752.2,0.02682268]
[1646824236769,10.77158,2752.3,2752.2,0.02682268]
[1646824237364,7.27158,2752.3,2752.2,0.02682268]
[1646824237567,0.3625,2752.0,2751.8,0.0352703]
[1646824237772,0.3625,2752.0,2750.9,0.03866348]
[1646824237774,1.81866,2751.6,2750.9,0.03866348]
[1646824237967,1.81866,2751.6,2750.9,0.05876868]
[1646824237968,3.8625,2751.5,2750.9,0.05876868]
[1646824238168,0.3625,2751.5,2750.9,0.05876868]
[1646824238569,0.6625,2752.0,2750.9,0.05876868]
[1646824238767,1.81872,2751.6,2750.9,0.05876868]
[1646824238970,3.6372333,2751.6,2750.9,0.05876868]
[1646824239613,0.3625,2751.5,2750.9,0.08793668]
[1646824239816,0.3625,2751.4,2750.9,0.08793668]
[1646824240019,0.9093,2751.4,2750.9,0.08793668]
[1646824240517,3.63737,2751.5,2750.9,0.08793668]
[1646824240518,0.90927,2751.5,2750.9,0.08793668]
[1646824240919,4.40927,2751.5,2750.9,0.08793668]
[1646824241119,0.90927,2751.5,2750.9,0.08793668]
[1646824241520,0.90927,2751.5,2751.1,0.00423996]
[1646824241922,1.27177,2751.5,2751.1,0.00423996]
[1646824242120,0.90927,2751.5,2751.1,0.00423996]
[1646824242321,0.90927,2751.5,2750.9,0.08793668]
[1646824243162,1.27177,2751.5,2750.9,0.08793668]
[1646824243562,0.01796915,2751.4,2750.9,0.08793668]
[1646824246066,0.01796915,2751.4,2750.6,0.03551671]
[1646824246269,3.39087,2751.2,2751.0,0.00422325]
[1646824246469,0.5396,2751.1,2751.0,0.00422325]
[1646824246667,0.68386308,2751.1,2751.0,0.00422325]
[1646824247414,4.00676308,2751.1,2750.9,0.02583928]
[1646824247613,4.00676308,2751.1,2750.9,0.03006265]
[1646824247815,1.27213,2750.8,2750.6,0.0732344]
[1646824248018,2.1817695,2750.8,2750.6,0.0732344]
[1646824248419,6.27213,2750.7,2750.5,0.01383344]
[1646824248618,5.0,2750.5,2750.1,0.01442748]
[1646824248822,4.3625,2750.3,2750.1,0.03719584]
[1646824249022,0.3625,2750.2,2750.0,0.00699996]
[1646824249221,3.78319368,2750.4,2750.0,0.00699996]
[1646824249222,1.05391308,2750.4,2750.0,0.00699996]
[1646824249419,0.90965,2750.4,2750.0,0.00699996]
[1646824250125,0.90965,2750.4,2750.1,1.15041556]
[1646824251093,0.90965,2750.4,2750.1,1.15463993]
[1646824251293,0.90965,2750.4,2750.1,0.00422437]
[1646824251696,1.81926,2750.4,2750.1,0.04873437]
[1646824252093,1.81926,2750.4,2750.1,0.04451]
[1646824252498,2.7289307,2750.4,2750.1,0.04451]
[1646824252896,1.1337505,2750.4,2750.1,0.04451]
[1646824253395,5.5,2750.3,2750.0,0.00699996]
[1646824253595,0.3625,2750.2,2750.1,0.03131008]
[1646824256422,3.3625,2750.1,2750.0,0.01399992]
[1646824256622,0.3625,2750.1,2750.0,0.01399992]
[1646824257421,0.3625,2750.2,2750.0,0.01399992]
[1646824257822,2.74785202,2750.3,2750.0,0.01399992]
[1646824258269,3.65744202,2750.3,2750.0,0.01399992]
[1646824258563,2.74785202,2750.3,2750.0,0.01399992]
[1646824258763,0.01857202,2750.3,2750.0,0.01399992]
[1646824261268,0.92808202,2750.3,2750.0,0.01399992]
[1646824261666,0.01857202,2750.3,2750.0,0.01399992]
[1646824262517,0.01857202,2750.3,2750.2,0.90793749]
[1646824263317,0.01857202,2750.3,2750.2,1.35293749]
[1646824263718,0.01857202,2750.3,2750.2,11.9075]
[1646824263918,0.01857202,2750.3,2750.2,0.445]
[1646824264319,0.01857202,2750.3,2750.2,11.545]
[1646824264522,0.01857202,2750.3,2750.2,11.9075]
[1646824264722,0.01857202,2750.3,2750.2,12.2075]
[1646824264920,0.029168,2751.2,2750.2,15.2075]
[1646824265221,4.54718997,2752.0,2750.4,11.4625]
[1646824265222,0.1771,2751.9,2750.4,11.4625]
[1646824265423,0.13819997,2752.0,2751.3,0.88238853]
[1646824265424,3.81529997,2752.0,2751.3,0.88238853]
[1646824265691,0.1771,2752.0,2751.3,0.88238853]
[1646824265890,0.90889,2752.1,2751.3,0.88238853]
[1646824266093,0.90889,2752.1,2751.4,0.3625]
[1646824266391,0.029168,2752.3,2751.4,0.8075]
[1646824266589,0.145552,2752.2,2751.4,0.8075]
[1646824266789,0.029168,2752.3,2751.8,1.21557071]
[1646824267193,0.1771,2752.7,2751.9,0.445]
[1646824267391,0.1771,2752.7,2752.0,0.3625]
[1646824267589,0.1771,2752.7,2752.1,0.8075]
[1646824268094,0.1771,2752.7,2752.3,0.90131744]
[1646824268290,0.1771,2752.7,2752.1,0.8075]
[1646824268491,0.029168,2752.9,2752.1,0.8075]
[1646824268492,0.1771,2752.8,2752.1,0.8075]
[1646824268691,0.1771,2752.8,2752.1,0.445]
[1646824268892,0.1771,2752.8,2751.7,0.44749271]
[1646824269090,0.1771,2752.8,2751.7,0.445]
[1646824269315,0.91979627,2752.7,2751.7,0.445]
[1646824269514,0.9279478,2752.0,2751.6,0.00249271]
[1646824269716,0.9279478,2752.0,2751.5,0.95790006]
[1646824271519,0.9279478,2752.0,2751.3,3.445]
[1646824272522,0.9279478,2752.0,2751.3,0.445]
[1646824272723,0.9279478,2752.0,2751.4,1.07721302]
[1646824272923,0.07882924,2752.0,2751.4,1.07721302]
[1646824273378,0.07882924,2752.0,2751.3,0.445]
[1646824273776,0.0204355,2751.9,2751.3,0.445]
[1646824274378,0.0204355,2751.9,2751.5,1.1002328]
[1646824275784,0.0204355,2751.9,2751.6,0.67461468]
[1646824276827,0.0204355,2751.9,2751.5,1.1002328]
[1646824277016,0.0204355,2751.9,2751.1,0.00249271]
[1646824277217,0.0204355,2751.9,2751.1,0.445]
[1646824277418,0.0204355,2751.9,2751.2,0.67579449]
[1646824277820,0.0204355,2751.9,2751.3,0.67579449]
[1646824278020,0.909,2751.7,2751.4,0.67579449]
[1646824278221,0.909,2751.7,2751.0,0.00249271]
[1646824278525,0.909,2751.7,2751.0,0.66019188]
[1646824280969,0.909,2751.7,2751.1,0.66019188]
[1646824280970,0.938168,2751.7,2751.1,0.66019188]
[1646824281175,0.938168,2751.7,2751.2,0.66019188]
[1646824281378,0.938168,2751.7,2750.6,0.445]
[1646824281379,0.938168,2751.7,2751.3,0.66019188]
[1646824281571,0.938168,2751.7,2750.4,17.52397687]
[1646824281572,0.029168,2751.4,2750.7,0.00249271]
[1646824281772,0.029168,2751.4,2750.5,0.66131818]
[1646824281773,1.2717,2751.3,2750.5,0.66131818]
[1646824281972,0.029168,2750.8,2750.5,0.66131818]
[1646824282372,0.3625,2751.3,2750.5,0.66131818]
[1646824282373,0.029168,2751.2,2750.5,0.66131818]
[1646824282572,0.205068,2751.2,2750.5,0.66131818]
[1646824282771,0.029168,2751.2,2750.5,0.66131818]
[1646824282974,0.90922,2751.1,2750.5,0.66131818]
[1646824284325,0.90922,2751.1,2750.6,0.66131818]
[1646824284514,0.90922,2751.1,2750.7,0.66131818]
[1646824284715,0.90922,2751.1,2750.8,0.66131818]
[1646824284916,0.90922,2751.1,2750.9,0.66131818]
[1646824285115,0.90922,2751.1,2750.3,0.01778326]
[1646824285116,0.90922,2751.1,2750.4,0.66131818]
[1646824285418,0.38548409,2751.6,2750.5,0.66170252]
[1646824285620,0.38548409,2751.6,2750.6,11.76170252]
[1646824285621,0.02298409,2751.6,2750.6,11.76170252]
[1646824285820,0.02298409,2751.6,2750.7,0.66170252]
[1646824286020,0.02298409,2751.6,2750.7,1.10670252]
[1646824286021,0.145584,2751.4,2750.7,1.10670252]
[1646824286222,0.145584,2751.4,2750.8,0.66170252]
[1646824286524,0.02298409,2751.6,2750.9,0.87856318]
[1646824286720,0.02298409,2751.6,2751.0,0.66170252]
[1646824287523,0.02298409,2751.6,2751.1,0.66170252]
[1646824287720,0.02298409,2751.6,2750.4,1.1997]
[1646824287921,0.029168,2751.5,2750.5,0.66165105]
[1646824288371,0.02298409,2751.6,2751.3,0.96047215]
[1646824288574,0.02298409,2751.6,2751.4,1.10665105]
[1646824288767,0.02298409,2751.6,2751.5,11.76132838]
[1646824288969,0.02298409,2751.6,2751.5,12.20632838]
[1646824289367,0.02298409,2751.6,2751.5,1.10632838]
[1646824290071,0.02298409,2751.6,2751.5,1.1060407]
[1646824290271,0.02298409,2751.6,2751.5,0.445]
[1646824290673,0.02298409,2751.6,2751.5,1.10606448]
[1646824291376,0.02298409,2751.6,2751.0,0.445]
[1646824291574,0.02298409,2751.6,2751.1,0.66121664]
[1646824292020,0.02298409,2751.6,2751.1,1.10621664]
[1646824292220,0.02298409,2751.6,2751.2,0.66121664]
[1646824293021,0.00244705,2751.6,2751.2,1.10621664]
[1646824293220,0.00244705,2751.6,2751.3,11.76121664]
[1646824293421,0.00244705,2751.6,2751.5,11.4625]
[1646824293622,0.00244705,2751.6,2751.5,12.56871664]
[1646824293824,0.1756,2752.4,2751.5,16.86871664]
[1646824294126,0.00223245,2752.8,2752.4,11.4625]
[1646824294328,0.02835825,2753.6,2752.6,11.1]
[1646824294329,0.81831973,2753.4,2752.6,11.1]
[1646824294528,0.81831973,2753.3,2752.8,11.1]
[1646824294722,0.02835825,2753.6,2752.8,11.4625]
[1646824294922,0.02835825,2753.6,2753.0,11.1]
[1646824295121,0.02835825,2753.6,2752.4,0.30249271]
[1646824295122,0.02835825,2753.6,2753.1,11.545]
[1646824295324,0.02835825,2753.6,2753.3,0.90774196]
[1646824295567,0.02835825,2753.6,2753.4,0.445]
[1646824296772,0.05752625,2753.6,2752.8,11.10249271]
[1646824296978,0.05752625,2753.6,2753.1,1.02129798]
[1646824297172,0.02835825,2753.6,2753.2,0.08935]
[1646824298072,0.02835825,2753.6,2752.7,12.70109271]
[1646824298275,0.02835825,2753.6,2752.7,1.1536]
[1646824298276,0.00250105,2753.5,2752.7,1.1536]
[1646824298474,0.00250105,2753.5,2752.4,0.00249271]
[1646824298475,0.029168,2752.9,2752.4,0.00249271]
[1646824298674,0.029168,2752.9,2752.3,0.65795686]
[1646824298872,0.029168,2752.9,2751.9,0.00249271]
[1646824299074,0.029168,2752.9,2752.4,1.0756145]
[1646824299335,0.029168,2753.1,2752.4,1.0756145]
[1646824299529,0.002501,2752.8,2752.4,1.0756145]
[1646824299925,0.002501,2752.8,2752.5,1.10281349]
[1646824300125,0.002501,2752.8,2752.5,0.445]
[1646824300525,0.029168,2753.2,2752.5,0.445]
[1646824300730,0.029168,2753.0,2752.5,0.445]
[1646824300928,0.00216765,2752.8,2752.5,0.445]
[1646824301629,0.029168,2753.0,2752.5,0.445]
[1646824302036,0.00216765,2752.8,2752.5,0.445]
[1646824302430,0.00216765,2752.8,2752.5,11.545]
[1646824302831,0.00216765,2752.8,2752.7,11.1]
[1646824303067,0.05752625,2753.6,2752.7,11.75854074]
[1646824303265,0.05752625,2753.6,2752.7,11.1]
[1646824303266,0.00216765,2752.8,2752.7,11.1]
[1646824303466,0.00216765,2752.8,2752.7,12.80521324]
[1646824304069,0.08824,2753.5,2752.7,12.80521324]
[1646824304269,0.08824,2753.5,2752.8,0.65847493]
[1646824304471,0.00221604,2752.9,2752.8,0.65847493]
[1646824305271,0.08824,2753.5,2752.8,1.10347493]
[1646824305472,0.00221604,2753.0,2752.8,0.445]
[1646824306073,0.00221604,2753.0,2752.8,11.545]
[1646824306472,0.029168,2753.3,2752.8,11.545]
[1646824306916,0.00221604,2753.0,2752.8,11.545]
[1646824307513,0.00221604,2753.0,2752.8,0.445]
[1646824307715,0.029168,2753.1,2752.8,0.445]
[1646824307916,0.029168,2753.1,2752.5,11.1]
[1646824308115,0.029168,2753.1,2752.4,0.00249271]
[1646824308116,0.029168,2753.1,2752.3,1.6172]
[1646824308117,0.00222818,2753.0,2752.3,1.1722]
[1646824308316,0.00222818,2753.0,2752.4,0.65925313]
[1646824308522,0.029168,2752.7,2752.4,0.65925313]
[1646824308721,0.029168,2752.7,2752.2,0.9481887]
[1646824308920,0.029168,2752.7,2752.3,0.65932055]
[1646824309121,0.029168,2752.8,2752.3,0.65932055]
[1646824309323,0.029168,2752.8,2752.3,11.75932055]
[1646824309324,0.00222818,2752.8,2752.3,11.75932055]
[1646824309524,0.00222818,2752.8,2752.4,0.65932055]
[1646824309926,0.00222818,2752.8,2752.5,11.545]
[1646824310127,0.029168,2753.4,2752.7,11.1]
[1646824310323,0.05752625,2753.6,2752.8,1.10432055]
[1646824310574,0.05752625,2753.6,2752.9,0.65932055]
[1646824310773,0.029168,2753.5,2753.0,0.445]
[1646824310974,0.029168,2753.5,2753.0,1.55143351]
[1646824311576,0.002224,2753.4,2753.0,1.55143351]
[1646824311782,0.002224,2753.4,2753.1,1.02111735]
[1646824311977,0.002224,2753.4,2753.2,12.20361735]
[1646824312175,0.002224,2753.4,2753.3,11.75861735]
[1646824312373,0.002224,2753.4,2753.3,12.20361735]
[1646824312577,0.02835825,2753.6,2753.3,12.56611735]
[1646824312775,0.02835825,2753.6,2753.4,0.65861735]
[1646824312975,0.02835825,2753.6,2753.5,1.588899]
[1646824313175,0.02835825,2753.6,2753.5,12.688899]
[1646824313377,0.02835825,2753.6,2753.5,14.61723656]
[1646824313580,0.029168,2754.4,2753.7,11.1]
[1646824313882,0.08351,2754.6,2753.9,11.1]
[1646824313883,0.029168,2754.6,2753.9,11.1]
[1646824314077,0.029168,2754.6,2754.0,11.545]
[1646824314335,0.116568,2754.8,2754.3,1.14775778]
[1646824314522,0.116568,2754.8,2753.5,0.00249271]
[1646824314523,0.0874,2754.8,2754.2,11.1]
[1646824314720,0.0874,2754.8,2754.3,11.545]
[1646824314920,0.0874,2754.8,2754.4,0.445]
[1646824315125,0.0874,2754.8,2754.5,0.445]
[1646824315320,0.00250141,2754.6,2754.5,0.445]
[1646824316125,0.0874,2754.8,2754.5,0.445]
[1646824316523,0.00250141,2754.7,2754.5,0.445]
[1646824317522,0.232818,2754.8,2754.5,0.445]
[1646824317728,0.00250141,2754.7,2754.5,0.445]
[1646824318575,0.0874,2754.8,2754.5,0.445]
[1646824318978,0.00218512,2754.7,2754.5,0.445]
[1646824319778,1.17652046,2755.4,2754.5,0.445]
[1646824319982,1.17652046,2755.4,2754.1,0.1814]
[1646824319983,0.00223096,2754.7,2754.2,0.00249271]
[1646824320183,0.029168,2754.3,2754.1,0.1814]
[1646824320985,0.029168,2754.3,2753.8,3.0]
[1646824321183,0.029168,2753.9,2753.8,3.0]
[1646824322427,3.891668,2753.9,2753.8,3.0]
[1646824322626,0.391668,2753.9,2753.8,3.0]
[1646824323427,0.029168,2753.9,2753.8,3.0]
[1646824324125,0.029168,2753.9,2753.1,0.00249271]
[1646824324326,0.029168,2753.9,2752.8,1.19443916]
[1646824324728,0.3625,2754.0,2752.8,1.19443916]
[1646824324937,0.03139194,2753.6,2752.8,1.19443916]
[1646824325132,0.029168,2753.4,2752.5,15.38569271]
[1646824325328,0.029168,2753.4,2752.6,11.545]
[1646824326176,0.00222394,2753.1,2753.0,0.9077314]
[1646824326974,0.029168,2753.6,2753.0,0.9077314]
[1646824327376,0.00222394,2753.2,2753.0,0.9077314]
[1646824328276,0.029168,2753.6,2753.0,0.9077314]
[1646824328476,0.00222515,2753.2,2753.0,0.9077314]
[1646824328682,0.00222515,2753.2,2753.0,12.0077314]
[1646824328876,0.00222515,2753.2,2753.0,0.9077314]
[1646824329318,0.00222515,2753.2,2753.1,0.445]
[1646824329515,0.08416,2754.2,2753.1,0.445]
[1646824329718,0.00222515,2753.2,2753.1,0.445]
[1646824330519,0.08674,2753.8,2753.1,0.445]
[1646824331021,0.00222515,2753.3,2753.1,0.445]
[1646824332022,0.029168,2753.9,2753.1,0.445]
[1646824332223,0.00222494,2753.3,2753.2,11.1]
[1646824332423,0.00222494,2753.3,2753.2,12.19991739]
[1646824332626,0.00222494,2753.3,2753.2,12.56241739]
[1646824333068,0.029168,2753.9,2753.2,12.56241739]
[1646824333268,0.029168,2753.9,2753.7,0.00197645]
[1646824333468,0.029168,2754.1,2753.7,0.00197645]
[1646824334266,0.08931,2754.2,2753.7,0.00197645]
[1646824334466,0.08931,2754.2,2753.7,0.65794156]
[1646824334467,0.00222494,2754.0,2753.7,0.65794156]
[1646824334667,0.00222494,2754.0,2753.8,0.445]
[1646824334866,0.00222494,2754.0,2753.9,0.65575126]
[1646824335067,0.00222494,2754.0,2753.9,0.445]
[1646824335273,0.00222494,2754.0,2753.9,1.10078896]
[1646824335467,0.08771314,2754.2,2753.9,1.10078896]
[1646824335671,0.08771314,2754.2,2753.9,0.445]
[1646824335876,0.03139852,2754.1,2753.7,0.00197645]
[1646824336572,0.82316909,2754.0,2753.7,0.00197645]
[1646824337019,0.82539961,2754.0,2753.7,0.00197645]
[1646824337418,0.029168,2753.8,2753.7,0.00197645]
[1646824338219,0.85341816,2753.8,2753.7,0.00197645]
[1646824338821,0.82425016,2753.8,2753.7,0.00197645]
[1646824339221,0.029168,2753.9,2753.7,0.00197645]
[1646824339420,0.0313921,2753.9,2753.7,0.00197645]
[1646824339621,0.82455011,2753.8,2753.7,0.00197645]
[1646824339819,0.0313921,2753.9,2753.7,0.65957504]
[1646824340020,0.0313921,2753.9,2753.7,0.00197645]
[1646824340419,0.029168,2753.9,2753.7,0.00197645]
[1646824340874,0.0313921,2753.9,2753.7,0.00197645]
[1646824341273,0.0022241,2753.9,2753.7,0.00197645]
[1646824341473,0.82454008,2754.0,2753.7,0.00197645]
[1646824341873,0.0022241,2753.9,2753.7,0.00197645]
[1646824342675,0.82454008,2754.0,2753.7,0.00197645]
[1646824342975,0.00222505,2753.9,2753.7,0.00197645]
[1646824343877,0.82454008,2754.0,2753.7,0.00197645]
[1646824344320,0.00222505,2753.9,2753.7,0.00197645]
[1646824345119,0.82454008,2754.0,2753.7,0.00197645]
[1646824345421,0.03139305,2753.9,2753.7,0.00197645]
[1646824345822,0.00222505,2753.9,2753.7,0.00197645]
[1646824346227,0.00222505,2753.9,2753.7,0.65953413]
[1646824346426,0.82490088,2754.0,2753.8,0.65755768]
[1646824346625,0.0022249,2753.9,2753.7,0.00197645]
[1646824347726,0.82490088,2754.0,2753.7,0.00197645]
[1646824347925,0.0022249,2753.9,2753.7,1.06689256]
[1646824348167,0.0022249,2753.9,2753.8,0.65792797]
[1646824348569,0.0022249,2753.9,2753.7,0.00197645]
[1646824348870,0.82490088,2754.0,2753.7,0.00197645]
[1646824349068,0.82712578,2754.0,2753.7,0.00197645]
[1646824349268,0.82712578,2754.0,2753.7,1.11219394]
[1646824349467,0.82712578,2754.0,2753.8,0.65792797]
[1646824350068,9.34207203,2753.8,2753.7,0.00197645]
[1646824353323,7.74890244,2753.8,2753.7,0.00197645]
[1646824353725,7.74890244,2753.8,2753.7,11.54697645]
[1646824354924,7.74890244,2753.8,2753.7,12.57320531]
[1646824355577,7.74890244,2753.8,2753.7,11.90947645]
[1646824356572,7.74890244,2753.8,2753.7,12.57665511]
[1646824356970,0.029168,2754.7,2753.9,11.1]
[1646824357171,0.029168,2754.7,2754.3,11.1]
[1646824357371,0.029168,2754.7,2754.4,0.445]
[1646824357772,0.08784,2755.0,2754.4,11.545]
[1646824357975,0.08781,2755.1,2754.5,11.1]
[1646824358174,0.029168,2754.9,2754.6,0.445]
[1646824358773,0.029168,2754.8,2754.6,1.49482965]
[1646824359427,0.029168,2755.0,2754.7,3.5]
[1646824359625,0.08777,2755.3,2754.9,11.1]
[1646824359824,0.029168,2755.5,2755.0,0.445]
[1646824360027,0.029168,2755.5,2755.0,11.545]
[1646824360225,0.029168,2755.5,2755.1,14.6]
[1646824360425,0.029168,2755.7,2755.3,1.14852212]
[1646824360634,0.029168,2755.7,2755.4,0.445]
[1646824360831,0.029168,2755.5,2755.4,0.445]
[1646824361631,12.64119715,2756.4,2755.4,15.045]
[1646824361632,0.750274,2756.3,2755.4,15.045]
[1646824361835,0.029168,2756.2,2755.4,15.045]
[1646824362037,8.022584,2756.4,2755.4,15.95226]
[1646824362038,0.029168,2756.3,2755.4,15.95226]
[1646824362233,7.389168,2756.4,2755.6,11.1]
[1646824362431,2.4929,2756.7,2755.8,11.1]
[1646824362432,0.029168,2756.5,2755.8,11.1]
[1646824362634,4.8593206,2756.8,2756.0,12.01622207]
[1646824362635,0.029168,2756.6,2756.0,12.01622207]
[1646824362831,0.029168,2756.6,2756.1,0.445]
[1646824363089,0.08765,2756.8,2756.1,15.045]
[1646824363276,0.55034737,2757.0,2756.1,15.045]
[1646824363277,0.029168,2756.9,2756.1,15.045]
[1646824363479,0.57951537,2757.0,2756.3,11.1]
[1646824363676,0.08802,2757.3,2756.5,11.1]
[1646824363677,0.029168,2757.2,2756.5,11.1]
[1646824363882,0.08802,2757.3,2756.6,1.59395485]
[1646824364079,0.08802,2757.3,2756.7,3.5]
[1646824364278,0.08802,2757.3,2756.8,11.545]
[1646824364480,1.19913574,2757.8,2757.0,11.1]
[1646824364685,1.818584,2758.3,2757.1,15.045]
[1646824364881,0.029168,2757.9,2757.2,3.945]
[1646824365081,0.029168,2757.8,2757.2,15.045]
[1646824365283,0.53609891,2758.3,2757.7,1.08459808]
[1646824365284,0.029168,2758.0,2757.7,1.08459808]
[1646824365479,2.2476866,2758.8,2757.8,0.445]
[1646824365480,0.662584,2758.7,2757.8,0.445]
[1646824365682,0.662584,2758.7,2757.8,15.045]
[1646824365886,1.0695,2758.8,2757.8,15.045]
[1646824366079,0.029168,2758.4,2757.8,15.045]
[1646824366480,0.00080291,2758.0,2757.8,15.045]
[1646824366680,0.00080291,2758.0,2757.9,3.4262087]
[1646824366923,0.00080291,2758.0,2757.9,0.445]
[1646824367126,3.8625,2758.7,2757.9,0.445]
[1646824367331,0.029168,2758.0,2757.3,0.08799]
[1646824367532,0.029168,2757.4,2757.0,0.08799]
[1646824367725,1.20701,2758.0,2757.0,0.08799]
[1646824367726,0.029168,2757.2,2757.0,0.08799]
[1646824367927,0.3625,2757.7,2757.0,0.08799]
[1646824367928,0.029168,2757.1,2757.0,0.08799]
[1646824368329,0.029168,2757.1,2756.9,0.8529]
[1646824369528,4.798938,2757.1,2756.9,0.8529]
[1646824369728,3.8625,2757.0,2756.9,0.8529]
[1646824369932,0.3625,2757.0,2756.9,0.8529]
[1646824370978,0.90729,2757.2,2756.9,0.8529]
[1646824371177,1.26979,2757.2,2756.9,0.8529]
[1646824371375,1.41465806,2757.2,2756.9,0.8529]
[1646824372177,0.90727,2757.1,2756.9,0.8529]
[1646824372480,2.22324276,2757.1,2756.9,0.8529]
[1646824372878,2.22324276,2757.1,2756.1,0.1812]
[1646824372879,10.00736806,2757.0,2756.1,0.1812]
[1646824373079,0.90762,2756.6,2755.6,0.1812]
[1646824373277,0.9076609,2756.3,2755.6,0.1812]
[1646824373477,0.9076609,2756.3,2755.3,3.0]
[1646824373478,0.3625,2756.2,2755.4,0.1814]
[1646824374178,1.27011,2756.2,2755.4,0.1814]
[1646824374421,0.90766,2756.1,2755.4,0.1814]
[1646824374620,1.27011,2756.2,2755.4,0.1814]
[1646824375625,0.3625,2756.0,2755.4,0.1814]
[1646824376023,0.3625,2756.0,2755.3,3.0]
[1646824376224,2.7230109,2756.3,2754.9,0.1814]
[1646824376425,3.5,2756.3,2755.0,11.1]